fUSD/lending_fUSD_20240404
["ID","MTS","AMOUNT","RATE_DAILY","PERIOD"]
[321455034,1712200261330,-199.05561653,0.00054607,45]
[321455035,1712200261339,-160.0,0.00054607,10]
[321455036,1712200261348,-3224.91812814,0.00054607,45]
[321455037,1712200261358,-2396.85806779,0.00054608,45]
[321455038,1712200261368,-5642.08043692,0.00054608,45]
[321455039,1712200261377,-18017.14930628,0.00054608,45]
[321455040,1712200261388,-187.41401412,0.00054609,45]
[321455041,1712200261397,-172.20220189,0.00054609,45]
[321455042,1712200261406,-5642.08043692,0.00054609,45]
[321455043,1712200261415,-255.92864983,0.0005461,45]
[321455044,1712200261424,-2149.94541876,0.00054611,45]
[321455045,1712200261433,-1074.97270938,0.00054611,45]
[321455046,1712200261442,-18017.14930628,0.00054611,45]
[321455047,1712200261451,-255.92864983,0.00054611,45]
[321455048,1712200261460,-296.29343064,0.00054612,4]
[321455049,1712200261469,-157.02170061,0.00054612,4]
[321455050,1712200261478,-338.92575307,0.00054612,45]
[321455051,1712200261487,-153.06862379,0.00054612,45]
[321455052,1712200261496,-5716.92,0.00054612,120]
[321455053,1712200261505,-50523.71734092,0.00054612,45]
[321455054,1712200261514,-1074.97270938,0.00054612,45]
[321455055,1712200261523,-3224.91812814,0.00054612,45]
[321455056,1712200261532,-3224.91812814,0.00054612,45]
[321455057,1712200261541,-172.20220189,0.00054613,45]
[321455058,1712200261550,-3224.91812814,0.00054613,45]
[321455059,1712200261560,-187.41401412,0.00054614,45]
[321455060,1712200261569,-187.41401412,0.00054614,45]
[321455061,1712200261578,-19935.35087711,0.00054614,45]
[321455062,1712200261587,-2149.94541876,0.00054614,45]
[321455063,1712200261596,-153.06862379,0.00054615,45]
[321455064,1712200261605,-162154.34375647,0.00054615,45]
[321455065,1712200261614,-150.0,0.00054615,7]
[321455066,1712200261623,-173.13611658,0.00054616,45]
[321455067,1712200261632,-338.92575307,0.00054616,45]
[321455068,1712200261641,-190.18658109,0.00054616,45]
[321455069,1712200261650,-270.14690815,0.00054616,45]
[321455070,1712200261659,-18017.14930627,0.00054616,45]
[321455071,1712200261669,-18017.14930627,0.00054616,45]
[321455072,1712200261677,-160.0,0.00054616,10]
[321455073,1712200261687,-160.0,0.00054616,10]
[321455074,1712200261696,-160.0,0.00054616,10]
[321455075,1712200261705,-150.0,0.00054616,7]
[321455076,1712200261715,-153.79214001,0.00054616,60]
[321455077,1712200261725,-5642.08043692,0.00054616,45]
[321455078,1712200261735,-1074.97270938,0.00054616,45]
[321455079,1712200261745,-172.20220189,0.00054617,45]
[321455080,1712200261755,-17199.5633501,0.00054617,45]
[321455081,1712200261765,-190.18658109,0.00054617,45]
[321455082,1712200261775,-5716.92,0.00054617,120]
[321455083,1712200261785,-153.06862379,0.00054617,45]
[321455084,1712200261794,-172.20220189,0.00054617,45]
[321455085,1712200261807,-18017.14930627,0.00054617,45]
[321455086,1712200261816,-172.20220188,0.00054618,45]
[321455087,1712200261825,-18017.14930628,0.00054618,45]
[321455088,1712200261836,-376.13869579,0.00054618,45]
[321455089,1712200261846,-376.13869579,0.00054619,45]
[321455090,1712200261858,-1074.97270938,0.00054619,45]
[321455091,1712200261868,-243.13932078,0.00054619,45]
[321455092,1712200261879,-501.52775995,0.00054619,45]
[321455093,1712200261890,-18017.14930628,0.0005462,45]
[321455094,1712200261899,-376.13869579,0.0005462,45]
[321455095,1712200261909,-18017.14930628,0.0005462,45]
[321455096,1712200261919,-191.57286458,0.0005462,45]
[321455097,1712200261930,-351.04937,0.0005462,71]
[321455098,1712200261939,-190.18658109,0.0005462,45]
[321455099,1712200261949,-243.13932078,0.00054621,45]
[321455100,1712200261960,-153.06862379,0.00054621,45]
[321455101,1712200261969,-376.1386958,0.00054621,45]
[321455102,1712200261979,-1880.69347898,0.00054621,45]
[321455103,1712200261988,-639.82162456,0.00054621,45]
[321455104,1712200261997,-376.13869579,0.00054621,45]
[321455105,1712200262007,-489.05120854,0.00054622,45]
[321455106,1712200262017,-19935.35087711,0.00054622,45]
[321455107,1712200262026,-50523.71734092,0.00054622,45]
[321455108,1712200262035,-2149.94541876,0.00054623,45]
[321455109,1712200262044,-2396.85806779,0.00054623,45]
[321455110,1712200262054,-501.52775995,0.00054623,45]
[321455111,1712200262065,-348.07357927,0.00054623,45]
[321455112,1712200262074,-258.30330282,0.00054624,45]
[321455113,1712200262084,-243.13932078,0.00054624,45]
[321455114,1712200262095,-190.18658109,0.00054625,45]
[321455115,1712200262105,-376.1386958,0.00054625,45]
[321455116,1712200262115,-19935.35087711,0.00054626,45]
[321455117,1712200262125,-199.05561653,0.00054626,45]
[321455118,1712200262136,-2149.94541876,0.00054626,45]
[321455119,1712200262146,-172.20220188,0.00054626,45]
[321455120,1712200262157,-200.0,0.00054626,30]
[321455121,1712200262167,-200.0,0.00054626,30]
[321455122,1712200262177,-150.005883,0.00054626,30]
[321455123,1712200262186,-150.005883,0.00054626,30]
[321455124,1712200262197,-200.000003,0.00054626,30]
[321455125,1712200262207,-200.000003,0.00054626,30]
[321455126,1712200262218,-153.068624,0.00054626,45]
[321455127,1712200262229,-18017.14930627,0.00054627,45]
[321455128,1712200262240,-376.1386958,0.00054627,45]
[321455129,1712200262249,-153.068624,0.00054627,45]
[321455130,1712200262259,-4299.89083753,0.00054628,45]
[321455131,1712200262268,-172.20220189,0.00054628,45]
[321455132,1712200262277,-2149.94541876,0.00054628,45]
[321455133,1712200262287,-172.20220189,0.00054628,45]
[321455134,1712200262297,-255.92864983,0.00054629,45]
[321455135,1712200262309,-173.13611658,0.00054629,45]
[321455136,1712200262320,-191.57286458,0.00054629,45]
[321455137,1712200262329,-1074.97270938,0.00054629,45]
[321455138,1712200262341,-153.068624,0.00054629,45]
[321455139,1712200262351,-1880.69347898,0.00054629,45]
[321455140,1712200262363,-3224.91812814,0.00054629,45]
[321455141,1712200262374,-338.92575307,0.0005463,45]
[321455142,1712200262384,-4299.89083753,0.0005463,45]
[321455143,1712200262393,-151.4540563,0.0005463,7]
[321455144,1712200262404,-348.07357927,0.0005463,45]
[321455145,1712200262414,-501.52775995,0.00054631,45]
[321455146,1712200262426,-17199.5633501,0.00054631,45]
[321455147,1712200262436,-19935.35087711,0.00054631,45]
[321455148,1712200262447,-151.80598542,0.00054632,60]
[321455149,1712200262458,-5716.92,0.00054632,120]
[321455150,1712200262468,-172.20220189,0.00054632,45]
[321455151,1712200262477,-172.20220189,0.00054632,45]
[321455152,1712200262487,-190.18658109,0.00054632,45]
[321455153,1712200262496,-270.14690815,0.00054632,45]
[321455154,1712200262505,-151.0,0.00054633,120]
[321455155,1712200262515,-198.86149,0.00054633,120]
[321455156,1712200262525,-198.86149,0.00054633,120]
[321455157,1712200262534,-256.233287,0.00054633,120]
[321455158,1712200262543,-151.0,0.00054633,120]
[321455159,1712200262554,-151.0,0.00054633,120]
[321455160,1712200262566,-185.406329,0.00054633,120]
[321455161,1712200262575,-185.406329,0.00054633,120]
[321455162,1712200262585,-151.0,0.00054633,120]
[321455163,1712200262594,-151.0,0.00054633,120]
[321455164,1712200262603,-151.0,0.00054633,120]
[321455165,1712200262613,-160.508222,0.00054633,120]
[321455166,1712200262622,-193.775026,0.00054633,120]
[321455167,1712200262631,-193.775026,0.00054633,120]
[321455168,1712200262640,-338.216261,0.00054633,120]
[321455169,1712200262650,-338.216261,0.00054633,120]
[321455170,1712200262661,-750.539528,0.00054633,30]
[321455171,1712200262670,-223.76888,0.00054633,120]
[321455172,1712200262679,-750.539528,0.00054633,30]
[321455173,1712200262689,-223.76888,0.00054633,120]
[321455174,1712200262698,-151.0,0.00054633,120]
[321455175,1712200262708,-151.0,0.00054633,120]
[321455176,1712200262717,-151.0,0.00054633,120]
[321455177,1712200262726,-361.491422,0.00054633,120]
[321455178,1712200262736,-361.491422,0.00054633,120]
[321455179,1712200262746,-151.0,0.00054633,120]
[321455180,1712200262755,-151.0,0.00054633,120]
[321455181,1712200262765,-151.0,0.00054633,120]
[321455182,1712200262774,-153.20076,0.00054633,60]
[321455183,1712200262784,-288.633246,0.00054633,120]
[321455184,1712200262794,-288.633246,0.00054633,120]
[321455185,1712200262805,-151.0,0.00054633,120]
[321455186,1712200262815,-151.0,0.00054633,120]
[321455187,1712200262826,-579.431877,0.00054633,120]
[321455188,1712200262837,-579.431877,0.00054633,120]
[321455189,1712200262847,-151.0,0.00054633,120]
[321455190,1712200262857,-230.324354,0.00054633,120]
[321455191,1712200262866,-230.324354,0.00054633,120]
[321455192,1712200262875,-151.0,0.00054633,120]
[321455193,1712200262885,-858.40166,0.00054633,30]
[321455194,1712200262895,-858.40166,0.00054633,30]
[321455195,1712200262904,-153.253207,0.00054633,120]
[321455196,1712200262913,-151.0,0.00054633,120]
[321455197,1712200262922,-217.97847,0.00054633,30]
[321455198,1712200262932,-217.97847,0.00054633,30]
[321455199,1712200262941,-151.0,0.00054633,120]
[321455200,1712200262951,-151.0,0.00054633,120]
[321455201,1712200262962,-151.0,0.00054633,120]
[321455202,1712200262972,-292.667321,0.00054633,120]
[321455203,1712200262984,-292.667321,0.00054633,120]
[321455204,1712200262993,-284.318097,0.00054633,120]
[321455205,1712200263004,-154.306058,0.00054633,120]
[321455206,1712200263014,-151.0,0.00054633,120]
[321455207,1712200263025,-151.0,0.00054633,120]
[321455208,1712200263035,-259.428547,0.00054633,120]
[321455209,1712200263046,-259.428547,0.00054633,120]
[321455210,1712200263059,-162.974525,0.00054633,120]
[321455211,1712200263069,-162.974525,0.00054633,120]
[321455212,1712200263079,-151.0,0.00054633,120]
[321455213,1712200263089,-151.0,0.00054633,120]
[321455214,1712200263100,-461.879019,0.00054633,120]
[321455215,1712200263112,-461.879019,0.00054633,120]
[321455216,1712200263124,-151.0,0.00054633,120]
[321455217,1712200263134,-151.0,0.00054633,120]
[321455218,1712200263144,-151.0,0.00054633,120]
[321455219,1712200263153,-151.0,0.00054633,120]
[321455220,1712200263163,-151.0,0.00054633,120]
[321455221,1712200263174,-151.0,0.00054633,120]
[321455222,1712200263183,-1880.69347897,0.00054633,45]
[321455223,1712200263193,-376.13869579,0.00054633,45]
[321455224,1712200263203,-639.82162456,0.00054633,45]
[321455225,1712200263213,-162154.34375647,0.00054633,45]
[321455226,1712200263223,-3224.91812814,0.00054633,45]
[321455227,1712200263233,-1000.0,0.00054633,14]
[321455228,1712200263242,-255.92864983,0.00054634,45]
[321455229,1712200263251,-639.82162456,0.00054634,45]
[321455230,1712200263261,-172.20220189,0.00054634,45]
[321455231,1712200263272,-150.0,0.00054634,7]
[321455232,1712200263281,-150.0,0.00054634,7]
[321455233,1712200263291,-5716.92,0.00054634,120]
[321455234,1712200263301,-172.20220188,0.00054635,45]
[321455235,1712200263318,-151.0,0.00054635,120]
[321455236,1712200263327,-151.0,0.00054635,120]
[321455237,1712200263338,-151.0,0.00054635,120]
[321455238,1712200263348,-151.0,0.00054635,120]
[321455239,1712200263358,-354.097611,0.00054635,120]
[321455240,1712200263368,-354.097611,0.00054635,120]
[321455241,1712200263379,-151.0,0.00054635,120]
[321455242,1712200263391,-151.0,0.00054635,60]
[321455243,1712200263401,-151.0,0.00054635,120]
[321455244,1712200263411,-151.0,0.00054635,120]
[321455245,1712200263421,-151.0,0.00054635,120]
[321455246,1712200263430,-151.0,0.00054635,120]
[321455247,1712200263440,-151.0,0.00054635,120]
[321455248,1712200263449,-151.0,0.00054635,120]
[321455249,1712200263458,-151.0,0.00054635,120]
[321455250,1712200263468,-151.0,0.00054635,7]
[321455251,1712200263478,-153.192305,0.00054635,7]
[321455252,1712200263487,-151.0,0.00054635,21]
[321455253,1712200263497,-200.701774,0.00054635,120]
[321455254,1712200263508,-200.701774,0.00054635,120]
[321455255,1712200263517,-162154.34375647,0.00054635,45]
[321455256,1712200263528,-376.1386958,0.00054635,45]
[321455257,1712200263538,-1880.69347898,0.00054636,45]
[321455258,1712200263549,-1880.69347897,0.00054636,45]
[321455259,1712200263563,-270.14690815,0.00054636,45]
[321455260,1712200263574,-259.233093,0.00054636,7]
[321455261,1712200263585,-259.233093,0.00054636,7]
[321455262,1712200263595,-151.0,0.00054636,120]
[321455263,1712200263606,-151.0,0.00054636,120]
[321455264,1712200263615,-151.0,0.00054636,120]
[321455265,1712200263625,-200.284835,0.00054636,120]
[321455266,1712200263635,-151.0,0.00054636,120]
[321455267,1712200263645,-151.0,0.00054636,7]
[321455268,1712200263655,-151.0,0.00054636,7]
[321455269,1712200263666,-151.0,0.00054636,120]
[321455270,1712200263677,-151.0,0.00054636,120]
[321455271,1712200263686,-153.38287,0.00054636,120]
[321455272,1712200263696,-151.0,0.00054636,120]
[321455273,1712200263706,-279.871932,0.00054636,14]
[321455274,1712200263716,-151.0,0.00054636,120]
[321455275,1712200263726,-279.871932,0.00054636,14]
[321455276,1712200263737,-340.729012,0.00054636,120]
[321455277,1712200263747,-340.729012,0.00054636,120]
[321455278,1712200263757,-323.357105,0.00054636,120]
[321455279,1712200263766,-151.0,0.00054636,120]
[321455280,1712200263776,-323.357105,0.00054636,120]
[321455281,1712200263785,-258.30330282,0.00054636,45]
[321455282,1712200263795,-376.13869579,0.00054636,45]
[321455283,1712200263806,-50523.71734092,0.00054636,45]
[321455284,1712200263816,-18017.14930628,0.00054636,45]
[321455285,1712200263826,-191.57286458,0.00054637,45]
[321455286,1712200263836,-190.18658109,0.00054638,45]
[321455287,1712200263847,-5642.08043692,0.00054638,45]
[321455288,1712200263858,-162154.34375647,0.00054638,45]
[321455289,1712200263868,-151.0,0.00054638,120]
[321455290,1712200263879,-151.0,0.00054638,120]
[321455291,1712200263890,-151.0,0.00054638,120]
[321455292,1712200263900,-151.0,0.00054638,120]
[321455293,1712200263910,-151.0,0.00054638,120]
[321455294,1712200263922,-151.0,0.00054638,120]
[321455295,1712200263934,-151.0,0.00054638,120]
[321455296,1712200263944,-151.0,0.00054638,120]
[321455297,1712200263955,-151.0,0.00054638,120]
[321455298,1712200263965,-151.0,0.00054638,120]
[321455299,1712200263975,-151.0,0.00054638,120]
[321455300,1712200263985,-151.0,0.00054638,120]
[321455301,1712200263994,-5716.92,0.00054638,120]
[321455302,1712200264005,-501.52775995,0.00054638,45]
[321455303,1712200264015,-501.52775995,0.00054638,45]
[321455304,1712200264024,-348.07357927,0.00054638,45]
[321455305,1712200264035,-18017.14930627,0.00054638,45]
[321455306,1712200264044,-172.20220189,0.0005464,45]
[321455307,1712200264054,-1880.69347897,0.0005464,45]
[321455308,1712200264066,-18017.14930628,0.0005464,45]
[321455309,1712200264075,-150.0,0.0005464,120]
[321455310,1712200264085,-170.67025145,0.0005464,45]
[321455311,1712200264096,-18017.14930627,0.0005464,45]
[321455312,1712200264106,-501.52775995,0.00054641,45]
[321455313,1712200264117,-1880.69347898,0.00054641,45]
[321455314,1712200264128,-243.13932078,0.00054641,45]
[321455315,1712200264138,-18017.14930628,0.00054641,45]
[321455316,1712200264149,-489.05120854,0.00054641,45]
[321455317,1712200264159,-2149.94541876,0.00054642,45]
[321455318,1712200264169,-1074.97270938,0.00054642,45]
[321455319,1712200264180,-172.20220189,0.00054642,45]
[321455320,1712200264191,-270.14690815,0.00054642,45]
[321455321,1712200264201,-258.30330282,0.00054642,45]
[321455322,1712200264212,-2396.85806779,0.00054642,45]
[321455323,1712200264223,-19935.35087711,0.00054643,45]
[321455324,1712200264234,-501.52775995,0.00054643,45]
[321455325,1712200264245,-19935.35087711,0.00054643,45]
[321455326,1712200264255,-50523.71734092,0.00054643,45]
[321455327,1712200264265,-501.52775995,0.00054644,45]
[321455328,1712200264278,-360.55013069,0.00054644,45]
[321455329,1712200264288,-18017.14930628,0.00054644,45]
[321455330,1712200264297,-255.92864983,0.00054645,45]
[321455331,1712200264308,-1074.97270938,0.00054645,45]
[321455332,1712200264321,-153.068624,0.00054645,45]
[321455333,1712200264331,-3224.91812814,0.00054645,45]
[321455334,1712200264343,-2149.94541876,0.00054646,45]
[321455335,1712200264353,-5716.92,0.00054646,120]
[321455336,1712200264364,-270.14690815,0.00054647,45]
[321455337,1712200264373,-17199.5633501,0.00054647,45]
[321455338,1712200264384,-501.52775995,0.00054647,45]
[321455339,1712200264394,-3224.91812814,0.00054647,45]
[321455340,1712200264403,-50523.71734092,0.00054647,45]
[321455341,1712200264414,-162154.34375647,0.00054647,45]
[321455342,1712200264424,-18017.14930627,0.00054647,45]
[321455343,1712200264434,-376.1386958,0.00054648,45]
[321455344,1712200264443,-1074.97270938,0.00054648,45]
[321455345,1712200264453,-376.13869579,0.00054649,45]
[321455346,1712200264464,-4299.89083753,0.00054649,45]
[321455347,1712200264473,-170.67025145,0.00054649,45]
[321455348,1712200264485,-255.92864983,0.00054649,45]
[321455349,1712200264497,-2149.94541876,0.0005465,45]
[321455350,1712200264507,-255.92864983,0.0005465,45]
[321455351,1712200264518,-173.13611658,0.0005465,45]
[321455352,1712200264528,-199.05561653,0.00054651,45]
[321455353,1712200264539,-17199.5633501,0.00054651,45]
[321455354,1712200264549,-3224.91812814,0.00054651,45]
[321455355,1712200264562,-639.82162456,0.00054652,45]
[321455356,1712200264571,-17199.5633501,0.00054652,45]
[321455357,1712200264582,-255.92864983,0.00054652,45]
[321455358,1712200264594,-2149.94541876,0.00054652,45]
[321455359,1712200264605,-172.20220189,0.00054653,45]
[321455360,1712200264615,-191.57286458,0.00054653,45]
[321455361,1712200264626,-170.67025145,0.00054653,45]
[321455362,1712200264637,-172.20220189,0.00054654,45]
[321455363,1712200264648,-5642.08043692,0.00054654,45]
[321455364,1712200264658,-338.92575307,0.00054655,45]
[321455365,1712200264669,-150.0,0.00054655,7]
[321455366,1712200264678,-255.92864983,0.00054656,45]
[321455367,1712200264688,-19935.35087711,0.00054656,45]
[321455368,1712200264698,-150.0,0.00054656,7]
[321455369,1712200264708,-1074.97270938,0.00054656,45]
[321455370,1712200264718,-4299.89083753,0.00054656,45]
[321455371,1712200264728,-501.52775995,0.00054656,45]
[321455372,1712200264737,-172.20220188,0.00054657,45]
[321455373,1712200264747,-187.41401412,0.00054657,45]
[321455374,1712200264758,-243.13932078,0.00054657,45]
[321455375,1712200264768,-170.67025145,0.00054657,45]
[321455376,1712200264778,-2149.94541876,0.00054657,45]
[321455377,1712200264789,-489.05120854,0.00054658,45]
[321455378,1712200264798,-18017.14930628,0.00054658,45]
[321455379,1712200264810,-151.0,0.00054658,120]
[321455380,1712200264820,-150.0,0.00054658,7]
[321455381,1712200264832,-338.92575307,0.00054659,45]
[321455382,1712200264843,-3224.91812814,0.00054659,45]
[321455383,1712200264858,-300.0,0.00054666,7]
[321455384,1712200264868,-150.0,0.00054673,7]
[321455385,1712200264878,-150.0,0.00054678,7]
[321455386,1712200264887,-150.0,0.00054679,7]
[321455387,1712200264897,-5716.92,0.00054683,120]
[321455388,1712200264907,-1999.0,0.00054684,120]
[321455389,1712200264917,-1999.0,0.00054684,120]
[321455390,1712200264928,-1999.0,0.00054684,120]
[321455391,1712200264937,-1999.0,0.00054684,120]
[321455392,1712200264947,-1999.0,0.00054684,120]
[321455393,1712200264957,-1999.0,0.00054684,120]
[321455394,1712200264967,-1999.0,0.00054684,120]
[321455395,1712200264977,-1999.0,0.00054684,120]
[321455396,1712200264987,-1999.0,0.00054684,120]
[321455397,1712200264996,-1999.0,0.00054684,120]
[321455398,1712200265006,-1999.0,0.00054684,120]
[321455399,1712200265017,-1999.0,0.00054684,120]
[321455400,1712200265026,-1999.0,0.00054684,120]
[321455401,1712200265036,-1999.0,0.00054684,120]
[321455402,1712200265047,-1999.0,0.00054684,120]
[321455403,1712200265057,-1999.0,0.00054684,120]
[321455404,1712200265068,-1999.0,0.00054684,120]
[321455405,1712200265078,-1999.0,0.00054684,120]
[321455406,1712200265089,-1999.0,0.00054684,120]
[321455407,1712200265100,-1999.0,0.00054684,120]
[321455408,1712200265110,-1999.0,0.00054684,120]
[321455409,1712200265120,-1999.0,0.00054684,120]
[321455410,1712200265130,-1999.0,0.00054684,120]
[321455411,1712200265141,-1882.21155331,0.00054684,120]
[321455412,1712200265152,-150.0,0.00054689,7]
[321455413,1712200265162,-150.0,0.00054692,120]
[321455414,1712200265173,-150.0,0.00054693,7]
[321455415,1712200265183,-480.0,0.000547,44]
[321455416,1712200265193,-150.0,0.000547,120]
[321455417,1712200265203,-150.0,0.00054703,7]
[321455418,1712200265213,-150.0,0.00054703,7]
[321455419,1712200265224,-150.0,0.00054714,7]
[321455420,1712200265234,-150.0,0.00054717,7]
[321455421,1712200265244,-6952.47090432,0.00054721,7]
[321455422,1712200265255,-150.0,0.00054727,7]
[321455423,1712200265265,-211.99904312,0.0005473,60]
[321455424,1712200265275,-8933.08628707,0.00054735,120]
[321455425,1712200265284,-200.0,0.00054742,15]
[321455426,1712200265294,-200.0,0.00054742,15]
[321455427,1712200265304,-150.0,0.00054743,7]
[321455428,1712200265317,-153.89032083,0.00054745,60]
[321455429,1712200265327,-200.0,0.00054748,120]
[321455430,1712200265338,-30346.98161053,0.0005475,120]
[321455431,1712200265348,-2923.05947,0.00054752,30]
[321455432,1712200265357,-150.0,0.00054754,7]
[321455433,1712200265367,-157.6431233,0.00054756,60]
[321455434,1712200265376,-150.0,0.00054757,7]
[321455435,1712200265387,-17248.26894552,0.00054762,35]
[321455436,1712200265396,-155.35899174,0.00054766,60]
[321455437,1712200265407,-1151.93,0.00054767,120]
[321455438,1712200265724,-400.0,0.0005477,7]
[321455439,1712200265734,-1000.0,0.0005477,7]
[321455440,1712200265744,-150.0,0.0005477,7]
[321455441,1712200265754,-150.0,0.00054773,7]
[321455442,1712200265764,-14327.7393279,0.00054775,2]
[321455443,1712200265774,-26970.7193802,0.00054775,2]
[321455444,1712200265785,-40879.2017949,0.00054775,2]
[321455445,1712200265794,-6001.7236124,0.00054775,2]
[321455446,1712200265804,-155.35899174,0.00054778,60]
[321455447,1712200265817,-403.14495324,0.00054779,120]
[321455448,1712200265828,-11877.8713437,0.00054779,120]
[321455449,1712200265840,-5716.92,0.00054779,120]
[321455450,1712200265852,-5716.92,0.00054779,120]
[321455451,1712200265863,-486571.13348706,0.0005478,120]
[321455452,1712200265873,-200.0,0.00054784,90]
[321455453,1712200265884,-200.0,0.00054784,90]
[321455454,1712200265894,-200.0,0.00054784,90]
[321455455,1712200265904,-200.0,0.00054784,90]
[321455456,1712200265913,-200.0,0.00054784,90]
[321455457,1712200265923,-200.0,0.00054784,90]
[321455458,1712200265934,-200.0,0.00054784,90]
[321455459,1712200265945,-151.29625457,0.00054786,60]
[321455460,1712200265954,-1852.73246104,0.00054791,20]
[321455461,1712200265964,-153.62296115,0.00054792,60]
[321455462,1712200265974,-5716.92,0.00054793,120]
[321455463,1712200265984,-5716.92,0.00054793,120]
[321455464,1712200265994,-5716.92,0.00054793,120]
[321455465,1712200266004,-5716.92,0.00054793,120]
[321455466,1712200266013,-5716.92,0.00054793,120]
[321455467,1712200266023,-5716.92,0.00054793,120]
[321455468,1712200266033,-5717.13490235,0.00054793,120]
[321455469,1712200266042,-7516.02331367,0.00054793,15]
[321455470,1712200266052,-4568.39026316,0.00054793,15]
[321455471,1712200266063,-517.46053719,0.00054794,30]
[321455472,1712200266073,-500.0,0.00054794,30]
[321455473,1712200266083,-157.040411,0.00054794,116]
[321455474,1712200266092,-500.0,0.00054794,120]
[321455475,1712200266102,-500.0,0.00054794,120]
[321455476,1712200266112,-502.41973736,0.00054794,120]
[321455477,1712200266122,-500.0,0.00054794,120]
[321455478,1712200266132,-503.5588665,0.00054794,120]
[321455479,1712200266142,-500.0,0.00054794,120]
[321455480,1712200266151,-507.85570057,0.00054794,120]
[321455481,1712200266162,-503.7149985,0.00054794,120]
[321455482,1712200266171,-503.20414012,0.00054794,120]
[321455483,1712200266181,-500.0,0.00054794,120]
[321455484,1712200266191,-319.68924003,0.00054794,120]
[321455485,1712200266201,-500.0,0.00054794,120]
[321455486,1712200266211,-500.0,0.00054794,120]
[321455487,1712200266221,-500.0,0.00054794,120]
[321455488,1712200266231,-500.0,0.00054794,30]
[321455489,1712200266240,-646.09402219,0.00054794,120]
[321455490,1712200266250,-586.88282109,0.00054794,120]
[321455491,1712200266259,-500.0,0.00054794,32]
[321455492,1712200266269,-500.0,0.00054794,32]
[321455493,1712200266279,-500.0,0.00054794,32]
[321455494,1712200266288,-500.0,0.00054794,32]
[321455495,1712200266298,-500.0,0.00054794,120]
[321455496,1712200266308,-500.0,0.00054794,32]
[321455497,1712200266318,-500.0,0.00054794,32]
[321455498,1712200266328,-500.0,0.00054794,44]
[321455499,1712200266338,-500.0,0.00054794,120]
[321455500,1712200266348,-500.0,0.00054794,120]
[321455501,1712200266357,-500.0,0.00054794,120]
[321455502,1712200266366,-513.73750395,0.00054794,120]
[321455503,1712200266376,-500.0,0.00054794,120]
[321455504,1712200266385,-505.36264774,0.00054794,120]
[321455505,1712200266394,-503.52246141,0.00054794,120]
[321455506,1712200266405,-500.0,0.00054794,120]
[321455507,1712200266414,-500.0,0.00054794,120]
[321455508,1712200266424,-500.0,0.00054794,120]
[321455509,1712200266433,-500.0,0.00054794,120]
[321455510,1712200266444,-500.0,0.00054794,120]
[321455511,1712200266453,-500.0,0.00054794,120]
[321455512,1712200266463,-581.53022383,0.00054794,120]
[321455513,1712200266472,-225.93024322,0.00054794,2]
[321455514,1712200266481,-176.23754766,0.00054794,120]
[321455515,1712200266490,-500.0,0.00054794,120]
[321455516,1712200266500,-504.92097988,0.00054794,120]
[321455517,1712200266509,-500.0,0.00054794,120]
[321455518,1712200266519,-500.0,0.00054794,120]
[321455519,1712200266529,-500.0,0.00054794,120]
[321455520,1712200266538,-500.0,0.00054794,120]
[321455521,1712200266547,-571.88223191,0.00054794,120]
[321455522,1712200266557,-500.0,0.00054794,120]
[321455523,1712200266567,-500.0,0.00054794,120]
[321455524,1712200266576,-500.0,0.00054794,120]
[321455525,1712200266586,-500.0,0.00054794,120]
[321455526,1712200266595,-320.34365124,0.00054794,2]
[321455527,1712200266604,-509.71280691,0.00054794,120]
[321455528,1712200266613,-561.77454115,0.00054794,120]
[321455529,1712200266623,-500.0,0.00054794,120]
[321455530,1712200266633,-500.0,0.00054794,120]
[321455531,1712200266642,-500.0,0.00054794,120]
[321455532,1712200266651,-508.33305274,0.00054794,120]
[321455533,1712200266660,-500.0,0.00054794,120]